fUSD/lending_fUSD_20250511
["ID","MTS","AMOUNT","RATE_DAILY","PERIOD"]
[360738106,1746958290315,-400.0,0.00019888,2]
[360738107,1746958290324,-400.0,0.00019888,2]
[360738108,1746958290334,-400.0,0.00019888,2]
[360738109,1746958290344,-400.0,0.00019888,2]
[360738110,1746958290354,-400.0,0.00019888,2]
[360738111,1746958290363,-400.0,0.00019888,2]
[360738112,1746958290373,-2076.11,0.00019888,2]
[360738113,1746958290383,-400.0,0.00019888,2]
[360738114,1746958290392,-400.0,0.00019888,2]
[360738115,1746958290402,-400.0,0.00019888,2]
[360738116,1746958290412,-400.0,0.00019888,2]
[360738117,1746958290422,-400.0,0.00019888,2]
[360738118,1746958290431,-1644.31020374,0.00019888,2]
[360738119,1746958290441,-921.68,0.00019888,2]
[360738120,1746958290451,-655.64753301,0.00019888,2]
[360738121,1746958290464,-266.03246699,0.00019888,2]
[360738122,1746958290473,-52.84788171,0.00019888,2]
[360738123,1746958290485,-310.0594,0.00019888,2]
[360738124,1746958290497,-37.09271829,0.00019888,2]
[360738125,1746958290509,-400.0,0.00019888,2]
[360738126,1746958290519,-400.0,0.00019888,2]
[360738127,1746958290529,-400.0,0.00019888,2]
[360738128,1746958290539,-317.66728171,0.00019888,2]
[360738129,1746958290551,-82.33271829,0.00019888,2]
[360738130,1746958290562,-400.0,0.00019888,2]
[360738131,1746958290572,-400.0,0.00019888,2]
[360738132,1746958290582,-400.0,0.00019888,2]
[360738133,1746958290592,-400.0,0.00019888,2]
[360738134,1746958290602,-401.34,0.00019888,2]
[360738135,1746958290612,-400.0,0.00019888,2]
[360738136,1746958290622,-400.0,0.00019888,2]
[360738137,1746958290634,-400.0,0.00019888,2]
[360738138,1746958290643,-1770.05246103,0.00019888,2]
[360738325,1746958403755,500.0,0.00029153,120]
[360738326,1746958570566,1000.0,0.0003,30]
[360738327,1746958581041,-169.82558624,0.000175,2]
[360738328,1746958595274,-77.89918341,0.000175,2]
[360738329,1746958625128,151.97,0.00013699,2]
[360738332,1746958769594,193.95,0.00020575,30]
[360738334,1746958939621,150.0,0.00030137,120]
[360738335,1746958993569,766.44,0.00016865,2]
[360738336,1746959002466,500.0,0.00029938,120]
[360738337,1746959062505,1000.0,0.0003,30]
[360738338,1746959100105,1000.0,0.0003,30]
[360738339,1746959139355,1000.0,0.0003,30]
[360738340,1746959156262,1000.0,0.0003,30]
[360738341,1746959199108,1000.0,0.0003,30]
[360738342,1746959236087,-622.717349,0.00018593,2]
[360738343,1746959236114,-200.87717531,0.00018687,2]
[360738344,1746959236139,-249.73006351,0.00018705,2]
[360738345,1746959239614,1000.0,0.0003,30]
[360738346,1746959254266,1000.0,0.0003,30]
[360738347,1746959269643,1000.0,0.0003,30]
[360738349,1746959297963,625.0,0.0003,30]
[360738355,1746959340830,500.0,0.0003,30]
[360738364,1746959392017,1216.0,0.00025579,120]
[360738365,1746959392222,1216.0,0.00027904,120]
[360738375,1746959432230,-962.8861052,0.00018603,2]
[360738377,1746959432241,-253.1138948,0.00018603,2]
[360738378,1746959432251,-250.26993649,0.00018705,2]
[360738379,1746959432260,-200.0,0.00018722,2]
[360738380,1746959432270,-104.04951359,0.00018769,2]
[360738381,1746959432294,-5317.83048641,0.00018769,2]
[360738382,1746959432304,-268.68,0.00018788,2]
[360738383,1746959432314,-1200.0,0.00018799,2]
[360738384,1746959432325,-500.0,0.000188,2]
[360738385,1746959432335,-247.61,0.000188,2]
[360738386,1746959432344,-204.36,0.00018808,2]
[360738387,1746959432355,-200.81,0.00018812,2]
[360738388,1746959432365,-300.0,0.00018826,2]
[360738389,1746959432375,-776.63,0.00018828,2]
[360738390,1746959432385,-311.2,0.00018836,2]
[360738391,1746959432395,-1000.0,0.00018883,2]
[360738392,1746959432405,-200.0,0.00018893,2]
[360738393,1746959432415,-207.4,0.00018899,2]
[360738394,1746959432425,-250.0,0.00018903,2]
[360738395,1746959432435,-766.44,0.00019129,2]
[360738396,1746959432445,-151.0,0.00019178,2]
[360738397,1746959432455,-169.04,0.00019178,2]
[360738398,1746959432465,-452.36,0.000192,2]
[360738399,1746959432474,-150.0,0.000192,2]
[360738400,1746959432484,-162.5,0.000192,2]
[360738401,1746959432494,-1156.1,0.000192,2]
[360738402,1746959432504,-300.8,0.000192,2]
[360738403,1746959432514,-352.66,0.000192,2]
[360738404,1746959432523,-150.06,0.000192,2]
[360738405,1746959432535,-166.68,0.00019245,2]
[360738406,1746959432547,-1176.98,0.000193,2]
[360738407,1746959432557,-459.57,0.000193,2]
[360738408,1746959432567,-150.06,0.000193,2]
[360738409,1746959432578,-358.27,0.000193,2]
[360738410,1746959432588,-164.97,0.000193,2]
[360738411,1746959432598,-983.01762847,0.00019587,2]
[360738412,1746959432607,-245.75,0.00019588,2]
[360738413,1746959432619,-245.75,0.00019589,2]
[360738414,1746959432629,-452.36,0.000196,2]
[360738415,1746959432639,-1156.1,0.000196,2]
[360738416,1746959432649,-162.5,0.000196,2]
[360738417,1746959432660,-150.0,0.000196,2]
[360738418,1746959432668,-352.66,0.000196,2]
[360738419,1746959432678,-150.06,0.000196,2]
[360738420,1746959432688,-452.36,0.000196,2]
[360738421,1746959432697,-352.66,0.000196,2]
[360738422,1746959432708,-162.5,0.000196,2]
[360738423,1746959432718,-1156.1,0.000196,2]
[360738424,1746959432728,-150.06,0.000196,2]
[360738425,1746959432737,-245.75,0.000196,2]
[360738426,1746959432747,-34561.73629059,0.00019621,2]
[360738427,1746959432756,-592.3854,0.00019636,2]
[360738428,1746959432766,-668.65185757,0.00019724,2]
[360738429,1746959432777,-151.0,0.00019726,2]
[360738430,1746959432787,-1606.1887,0.00019736,2]
[360738432,1746959432799,-500.0,0.00019757,2]
[360738434,1746959432811,-200.0,0.00019757,2]
[360738436,1746959432822,-200.0,0.00019761,2]
[360738438,1746959432836,-6882.50332927,0.00019776,2]
[360738440,1746959432847,-576.66234399,0.00019783,2]
[360738442,1746959432858,-2500.0,0.00019783,2]
[360738444,1746959432870,-161.65605631,0.00019784,2]
[360738448,1746959432882,-1749.12249993,0.00019784,2]
[360738450,1746959432893,-176.79144645,0.00019784,2]
[360738452,1746959432904,-21078.2571,0.00019785,2]
[360738454,1746959432915,-2273.4538,0.00019785,2]
[360738455,1746959432926,-155.81354303,0.00019788,2]
[360738458,1746959432936,-1749.12249984,0.00019797,2]
[360738459,1746959432947,-200.0,0.00019804,2]
[360738461,1746959432957,-1749.12249984,0.0001981,2]
[360738463,1746959432968,-1749.12249984,0.00019822,2]
[360738465,1746959432978,-170.00834436,0.00019831,2]
[360738467,1746959432988,-1749.12249984,0.00019835,2]
[360738469,1746959432998,-1749.12249984,0.00019848,2]
[360738472,1746959433009,-170.00834434,0.00019854,2]
[360738474,1746959433019,-1749.12249984,0.00019861,2]
[360738476,1746959433029,-302.35007709,0.00019873,2]
[360738477,1746959433039,-500.0,0.00019873,2]
[360738480,1746959433050,-500.0,0.00019873,2]
[360738481,1746959433060,-500.0,0.00019873,2]
[360738484,1746959433070,-500.0,0.00019873,2]
[360738485,1746959433081,-500.0,0.00019873,2]
[360738487,1746959433091,-500.0,0.00019873,2]
[360738489,1746959433100,-172.29,0.00019873,2]
[360738491,1746959433110,-1749.12249984,0.00019873,2]
[360738493,1746959433119,-170.00834434,0.00019877,2]
[360738495,1746959433129,-500.0,0.00019882,2]
[360738497,1746959433139,-500.0,0.00019882,2]
[360738499,1746959433149,-500.0,0.00019882,2]
[360738501,1746959433159,-500.0,0.00019882,2]
[360738503,1746959433168,-500.0,0.00019882,2]
[360738505,1746959433177,-500.0,0.00019882,2]
[360738507,1746959433188,-500.0,0.00019882,2]
[360738509,1746959433197,-500.0,0.00019882,2]
[360738511,1746959433207,-500.0,0.00019882,2]
[360738513,1746959433217,-500.0,0.00019882,2]
[360738515,1746959433227,-500.0,0.00019882,2]
[360738517,1746959433237,-500.0,0.00019882,2]
[360738519,1746959433246,-500.0,0.00019882,2]
[360738521,1746959433256,-500.0,0.00019882,2]
[360738523,1746959433266,-500.0,0.00019882,2]
[360738525,1746959433275,-500.0,0.00019882,2]
[360738527,1746959433284,-500.0,0.00019882,2]
[360738529,1746959433294,-500.0,0.00019882,2]
[360738531,1746959433304,-500.0,0.00019882,2]
[360738533,1746959433313,-500.0,0.00019882,2]
[360738535,1746959433322,-500.0,0.00019882,2]
[360738537,1746959433333,-500.0,0.00019882,2]
[360738539,1746959433341,-500.0,0.00019882,2]
[360738541,1746959433352,-500.0,0.00019882,2]
[360738543,1746959433362,-500.0,0.00019882,2]
[360738545,1746959433371,-500.0,0.00019882,2]
[360738547,1746959433381,-500.0,0.00019882,2]
[360738549,1746959433391,-500.0,0.00019882,2]
[360738551,1746959433400,-500.0,0.00019882,2]
[360738553,1746959433410,-500.0,0.00019882,2]
[360738555,1746959433419,-500.0,0.00019882,2]
[360738557,1746959433428,-500.0,0.00019882,2]
[360738559,1746959433438,-500.0,0.00019882,2]
[360738561,1746959433447,-500.0,0.00019882,2]
[360738563,1746959433456,-500.0,0.00019882,2]
[360738565,1746959433465,-500.0,0.00019882,2]
[360738567,1746959433475,-500.0,0.00019882,2]
[360738569,1746959433484,-500.0,0.00019882,2]
[360738571,1746959433494,-500.0,0.00019882,2]
[360738573,1746959433504,-500.0,0.00019882,2]
[360738575,1746959433514,-500.0,0.00019882,2]
[360738577,1746959433524,-500.0,0.00019882,2]
[360738579,1746959433535,-276.01235298,0.00019882,2]
[360738581,1746959433547,-500.0,0.00019882,2]
[360738583,1746959433556,-500.0,0.00019882,2]
[360738585,1746959433566,-500.0,0.00019882,2]
[360738587,1746959433576,-500.0,0.00019882,2]
[360738589,1746959433586,-500.0,0.00019882,2]
[360738592,1746959433596,-500.0,0.00019882,2]
[360738594,1746959433612,-500.0,0.00019882,2]
[360738597,1746959433627,-500.0,0.00019882,2]
[360738599,1746959433637,-500.0,0.00019882,2]
[360738601,1746959433647,-500.0,0.00019882,2]
[360738603,1746959433656,-500.0,0.00019882,2]
[360738605,1746959433666,-500.0,0.00019882,2]
[360738607,1746959433676,-500.0,0.00019882,2]
[360738609,1746959433685,-500.0,0.00019882,2]
[360738611,1746959433695,-500.0,0.00019882,2]
[360738613,1746959433705,-500.0,0.00019882,2]
[360738615,1746959433714,-500.0,0.00019882,2]
[360738617,1746959433724,-500.0,0.00019882,2]
[360738619,1746959433735,-500.0,0.00019882,2]
[360738621,1746959433746,-500.0,0.00019882,2]
[360738623,1746959433756,-500.0,0.00019882,2]
[360738625,1746959433766,-500.0,0.00019882,2]
[360738627,1746959433776,-500.0,0.00019882,2]
[360738629,1746959433785,-500.0,0.00019882,2]
[360738631,1746959433795,-500.0,0.00019882,2]
[360738633,1746959433805,-550.0,0.00019882,2]
[360738635,1746959433815,-500.0,0.00019882,2]
[360738637,1746959433825,-500.0,0.00019882,2]
[360738639,1746959433834,-500.0,0.00019882,2]
[360738640,1746959433844,-500.0,0.00019882,2]
[360738642,1746959433853,-500.0,0.00019882,2]
[360738644,1746959433863,-500.0,0.00019882,2]
[360738647,1746959433873,-500.0,0.00019882,2]
[360738649,1746959433883,-500.0,0.00019882,2]
[360738651,1746959433893,-500.0,0.00019882,2]
[360738653,1746959433903,-500.0,0.00019882,2]
[360738655,1746959433913,-500.0,0.00019882,2]
[360738657,1746959433923,-500.0,0.00019882,2]
[360738659,1746959433933,-500.0,0.00019882,2]
[360738660,1746959433942,-500.0,0.00019882,2]
[360738662,1746959433952,-500.0,0.00019882,2]
[360738663,1746959433961,-400.0,0.00019882,2]
[360738665,1746959433971,-424.14905654,0.00019882,2]
[360738667,1746959433980,-400.0,0.00019882,2]
[360738669,1746959433990,-400.0,0.00019882,2]
[360738671,1746959434000,-461.29285508,0.00019882,2]
[360738673,1746959434011,-400.0,0.00019882,2]
[360738675,1746959434020,-400.0,0.00019882,2]
[360738677,1746959434030,-400.0,0.00019883,2]
[360738679,1746959434040,-161.983584,0.00019883,2]
[360738681,1746959434051,-2102.1437,0.00019883,2]
[360738683,1746959434060,-41577.026127,0.00019883,2]
[360738686,1746959434071,-522.608322,0.00019883,2]
[360738688,1746959434082,-400.0,0.00019883,2]
[360738690,1746959434091,-400.0,0.00019883,2]
[360738692,1746959434101,-400.0,0.00019883,2]
[360738694,1746959434111,-400.0,0.00019883,2]
[360738696,1746959434121,-327.717741,0.00019883,2]
[360738697,1746959434131,-400.0,0.00019883,2]
[360738700,1746959434141,-400.0,0.00019883,2]
[360738702,1746959434151,-400.0,0.00019883,2]
[360738704,1746959434161,-400.0,0.00019883,2]
[360738706,1746959434171,-400.0,0.00019883,2]
[360738707,1746959434181,-400.0,0.00019883,2]
[360738709,1746959434190,-400.0,0.00019883,2]
[360738711,1746959434200,-400.0,0.00019883,2]
[360738713,1746959434210,-400.0,0.00019883,2]
[360738715,1746959434220,-400.0,0.00019883,2]
[360738717,1746959434229,-400.0,0.00019883,2]
[360738719,1746959434238,-400.0,0.00019883,2]
[360738721,1746959434248,-400.0,0.00019883,2]
[360738723,1746959434258,-462.25467831,0.00019883,2]
[360738725,1746959434268,-166.76,0.00019883,2]
[360738727,1746959434277,-400.0,0.00019883,2]
[360738729,1746959434287,-400.0,0.00019883,2]
[360738731,1746959434296,-400.0,0.00019883,2]
[360738733,1746959434306,-400.0,0.00019883,2]
[360738735,1746959434315,-400.0,0.00019883,2]
[360738737,1746959434325,-400.0,0.00019883,2]
[360738739,1746959434335,-400.0,0.00019883,2]
[360738741,1746959434345,-1012.52,0.00019883,2]
[360738768,1746959434605,-400.0,0.00019883,2]
[360738770,1746959434615,-400.0,0.00019883,2]
[360738772,1746959434625,-400.0,0.00019883,2]
[360738774,1746959434635,-400.0,0.00019883,2]
[360738776,1746959434644,-400.0,0.00019883,2]
[360738778,1746959434654,-400.0,0.00019883,2]
[360738779,1746959434664,-400.0,0.00019883,2]
[360738781,1746959434673,-400.0,0.00019883,2]
[360738783,1746959434683,-278.01240327,0.00019883,2]
[360738785,1746959434693,-400.0,0.00019883,2]
[360738787,1746959434702,-400.0,0.00019883,2]
[360738789,1746959434712,-400.0,0.00019883,2]
[360738792,1746959434723,-400.0,0.00019883,2]
[360738794,1746959434732,-400.0,0.00019883,2]
[360738796,1746959434742,-15825.13558884,0.00019883,2]
[360738805,1746959434821,-3610.19850992,0.00019883,2]
[360738809,1746959434853,-45870.05590124,0.00019883,2]
[360738811,1746959434863,-400.0,0.00019883,2]
[360738813,1746959434872,-400.0,0.00019883,2]
[360738815,1746959434882,-400.0,0.00019883,2]
[360738817,1746959434892,-400.0,0.00019883,2]
[360738819,1746959434902,-2071.29,0.00019883,2]
[360738821,1746959434911,-400.0,0.00019883,2]
[360738823,1746959434922,-400.0,0.00019883,2]
[360738825,1746959434931,-400.0,0.00019883,2]
[360738827,1746959434941,-487.64,0.00019883,2]
[360738829,1746959434950,-400.0,0.00019883,2]
[360738830,1746959434961,-438.85,0.00019883,2]
[360738832,1746959434970,-400.0,0.00019883,2]
[360738834,1746959434980,-400.0,0.00019883,2]
[360738836,1746959434989,-400.0,0.00019883,2]
[360738838,1746959434999,-400.0,0.00019883,2]
[360738840,1746959435010,-400.0,0.00019883,2]
[360738842,1746959435019,-492.83,0.00019883,2]
[360738844,1746959435029,-400.0,0.00019883,2]
[360738846,1746959435039,-400.0,0.00019883,2]
[360738848,1746959435048,-780.98,0.00019883,2]
[360738850,1746959435058,-2185.12,0.00019883,2]
[360738852,1746959435068,-400.0,0.00019883,2]
[360738854,1746959435078,-400.0,0.00019883,2]
[360738856,1746959435088,-400.0,0.00019883,2]
[360738858,1746959435098,-400.0,0.00019883,2]
[360738860,1746959435107,-2455.22,0.00019883,2]
[360738861,1746959435117,-400.0,0.00019883,2]
[360738863,1746959435126,-1816.6,0.00019883,2]
[360738865,1746959435136,-400.0,0.00019883,2]
[360738867,1746959435147,-400.0,0.00019883,2]
[360738870,1746959435157,-400.0,0.00019883,2]
[360738872,1746959435167,-334.42158272,0.00019883,2]
[360738874,1746959435177,-2422.12,0.00019883,2]
[360738876,1746959435187,-400.0,0.00019883,2]
[360738878,1746959435196,-400.0,0.00019883,2]
[360738880,1746959435206,-400.0,0.00019883,2]
[360738882,1746959435216,-1297.12,0.00019883,2]
[360738884,1746959435225,-2568.56,0.00019883,2]
[360738886,1746959435235,-1119.34,0.00019883,2]
[360738888,1746959435245,-400.0,0.00019883,2]
[360738890,1746959435254,-400.0,0.00019883,2]
[360738892,1746959435264,-400.0,0.00019883,2]
[360738894,1746959435273,-477.81,0.00019883,2]
[360738896,1746959435283,-400.0,0.00019883,2]
[360738898,1746959435293,-400.0,0.00019883,2]
[360738900,1746959435302,-849.1,0.00019883,2]
[360738902,1746959435311,-1616.36,0.00019883,2]
[360738904,1746959435321,-400.0,0.00019883,2]
[360738906,1746959435330,-400.0,0.00019883,2]
[360738908,1746959435340,-407.08,0.00019883,2]
[360738910,1746959435349,-400.0,0.00019883,2]
[360738912,1746959435359,-400.0,0.00019883,2]
[360738914,1746959435369,-400.0,0.00019883,2]
[360738916,1746959435378,-400.0,0.00019883,2]
[360738918,1746959435387,-456.022518,0.00019883,2]
[360738919,1746959435396,-500.0,0.00019883,2]
[360738922,1746959435406,-400.0,0.00019884,2]
[360738923,1746959435415,-400.0,0.00019884,2]
[360738925,1746959435424,-400.0,0.00019884,2]
[360738927,1746959435433,-376.79485208,0.00019884,2]
[360738929,1746959435443,-187.38170895,0.00019884,2]
[360738931,1746959435452,-161.46878987,0.00019884,2]
[360738933,1746959435461,-450.0,0.00019884,2]
[360738935,1746959435470,-400.0,0.00019884,2]
[360738937,1746959435479,-400.0,0.00019884,2]
[360738939,1746959435488,-400.0,0.00019884,2]
[360738941,1746959435498,-400.0,0.00019884,2]
[360738943,1746959435509,-400.0,0.00019884,2]
[360738945,1746959435517,-400.0,0.00019884,2]
[360738947,1746959435527,-400.0,0.00019884,2]
[360738949,1746959435537,-450.5,0.00019884,2]
[360738951,1746959435550,-400.0,0.00019884,2]
[360738953,1746959435559,-400.0,0.00019884,2]
[360738955,1746959435568,-475.66,0.00019884,2]
[360738957,1746959435578,-400.0,0.00019884,2]
[360738959,1746959435587,-472.89,0.00019884,2]
[360738961,1746959435598,-400.0,0.00019884,2]
[360738963,1746959435607,-400.0,0.00019884,2]
[360738965,1746959435616,-400.0,0.00019884,2]
[360738967,1746959435626,-569.33,0.00019884,2]
[360738969,1746959435636,-400.0,0.00019884,2]
[360738971,1746959435645,-400.0,0.00019884,2]
[360738973,1746959435654,-400.0,0.00019884,2]
[360738975,1746959435664,-400.0,0.00019884,2]
[360738977,1746959435673,-400.0,0.00019884,2]
[360738979,1746959435682,-400.0,0.00019884,2]
[360738981,1746959435691,-400.0,0.00019884,2]
[360738983,1746959435700,-400.0,0.00019884,2]
[360738985,1746959435710,-400.0,0.00019884,2]
[360738987,1746959435720,-400.0,0.00019884,2]
[360738989,1746959435729,-400.0,0.00019884,2]
[360738991,1746959435738,-548.53300129,0.00019884,2]
[360738992,1746959435751,-1574.36,0.00019884,2]
[360738994,1746959435760,-453.58344946,0.00019884,2]
[360738996,1746959435769,-400.0,0.00019884,2]
[360738998,1746959435778,-400.0,0.00019884,2]
[360739000,1746959435787,-400.0,0.00019884,2]
[360739002,1746959435797,-400.0,0.00019884,2]
[360739004,1746959435807,-169.46171421,0.00019884,2]
[360739006,1746959435816,-1145.1,0.00019884,2]
[360739008,1746959435825,-283.28068646,0.00019884,2]
[360739010,1746959435834,-400.0,0.00019884,2]
[360739012,1746959435843,-400.0,0.00019884,2]
[360739014,1746959435853,-400.0,0.00019884,2]
[360739016,1746959435863,-450.0,0.00019884,2]
[360739018,1746959435872,-400.0,0.00019884,2]
[360739020,1746959435881,-400.0,0.00019884,2]
[360739022,1746959435891,-400.0,0.00019884,2]
[360739024,1746959435901,-400.0,0.00019884,2]
[360739026,1746959435910,-400.0,0.00019884,2]
[360739028,1746959435919,-400.0,0.00019884,2]
[360739030,1746959435929,-450.0,0.00019884,2]
[360739031,1746959435938,-400.0,0.00019884,2]
[360739032,1746959435947,-400.0,0.00019884,2]
[360739033,1746959435956,-400.0,0.00019884,2]
[360739034,1746959435966,-162.96338953,0.00019884,2]
[360739035,1746959435975,-162.33656655,0.00019884,2]
[360739036,1746959435985,-400.0,0.00019884,2]
[360739037,1746959435994,-400.0,0.00019884,2]
[360739038,1746959436003,-400.0,0.00019884,2]
[360739039,1746959436012,-1501.86,0.00019884,2]
[360739040,1746959436022,-400.0,0.00019884,2]
[360739041,1746959436031,-162.51472681,0.00019884,2]
[360739042,1746959436041,-400.0,0.00019884,2]
[360739043,1746959436050,-400.0,0.00019884,2]
[360739044,1746959436061,-5563.07058484,0.00019884,2]
[360739045,1746959436075,-451.3,0.00019884,2]
[360739048,1746959436113,-362.0566847,0.00019883,2]
[360739050,1746959436123,-500.0,0.00019883,2]
[360739052,1746959436133,-5201.25366415,0.00019884,2]
[360739054,1746959436142,-400.0,0.00019884,2]
[360739056,1746959436151,-400.0,0.00019884,2]
[360739058,1746959436160,-400.0,0.00019884,2]
[360739060,1746959436170,-400.0,0.00019884,2]
[360739062,1746959436180,-400.0,0.00019884,2]
[360739064,1746959436189,-400.0,0.00019884,2]
[360739066,1746959436199,-400.0,0.00019884,2]
[360739068,1746959436209,-400.0,0.00019884,2]
[360739070,1746959436218,-204.78662724,0.00019884,2]
[360739283,1746959438269,-176.79144644,0.00019842,2]
[360739285,1746959438279,-400.0,0.00019882,2]
[360739287,1746959438288,-400.0,0.00019882,2]
[360739289,1746959438298,-72.03855356,0.00019882,2]
[360739293,1746959438323,-327.96144644,0.00019882,2]
[360739295,1746959438333,-187.71948891,0.00019882,2]
[360739297,1746959438342,-512.52390455,0.00019882,2]
[360739299,1746959438351,-500.0,0.00019883,2]
[360739301,1746959438361,-27.27765391,0.00019883,2]
[360739303,1746959438372,-435.94864659,0.00019883,2]
[360739305,1746959438382,-400.0,0.00019883,2]
[360739307,1746959438391,-7445.58,0.00019883,2]
[360739309,1746959438401,-195.21337276,0.00019884,2]
[360739311,1746959438411,-420.37,0.00019884,2]
[360739313,1746959438420,-400.0,0.00019884,2]
[360739315,1746959438430,-400.0,0.00019884,2]
[360739317,1746959438439,-400.0,0.00019884,2]
[360739319,1746959438449,-505.95,0.00019884,2]
[360739321,1746959438458,-551.85,0.00019884,2]
[360739323,1746959438467,-400.0,0.00019884,2]
[360739325,1746959438477,-400.0,0.00019884,2]
[360739327,1746959438486,-400.0,0.00019884,2]
[360739329,1746959438496,-400.0,0.00019884,2]
[360739330,1746959438506,-500.0,0.00019884,2]
[360739331,1746959438515,-507.72002416,0.00019884,2]
[360739332,1746959438525,-400.0,0.00019884,2]
[360739333,1746959438534,-400.0,0.00019884,2]
[360739335,1746959438545,-400.0,0.00019884,2]
[360739337,1746959438556,-400.0,0.00019884,2]
[360739339,1746959438565,-1000.0,0.00019884,2]
[360739341,1746959438574,-400.0,0.00019884,2]
[360739343,1746959438584,-400.0,0.00019884,2]
[360739346,1746959438594,-400.0,0.00019884,2]
[360739348,1746959438604,-400.0,0.00019884,2]
[360739350,1746959438613,-2633.87,0.00019884,2]
[360739352,1746959438623,-400.0,0.00019884,2]
[360739354,1746959438632,-400.0,0.00019884,2]
[360739356,1746959438642,-660.34,0.00019884,2]
[360739358,1746959438651,-400.0,0.00019884,2]
[360739360,1746959438660,-500.0,0.00019884,2]
[360739362,1746959438670,-400.0,0.00019884,2]
[360739364,1746959438679,-1382.49,0.00019884,2]
[360739366,1746959438688,-384.12,0.00019884,2]
[360739368,1746959438697,-400.0,0.00019884,2]
[360739370,1746959438706,-3968.04,0.00019884,2]
[360739372,1746959438716,-400.0,0.00019884,2]
[360739374,1746959438725,-400.0,0.00019884,2]
[360739376,1746959438734,-400.0,0.00019884,2]
[360739378,1746959438744,-1763.39,0.00019884,2]
[360739380,1746959438754,-400.0,0.00019884,2]
[360739382,1746959438763,-400.0,0.00019884,2]
[360739384,1746959438772,-400.0,0.00019884,2]
[360739386,1746959438781,-4620.16,0.00019884,2]
[360739388,1746959438790,-2510.71,0.00019884,2]
[360739390,1746959438802,-400.0,0.00019884,2]
[360739392,1746959438811,-400.0,0.00019884,2]
[360739394,1746959438820,-400.0,0.00019884,2]
[360739395,1746959438829,-400.0,0.00019884,2]
[360739397,1746959438838,-400.0,0.00019884,2]
[360739399,1746959438847,-400.0,0.00019884,2]
[360739401,1746959438855,-454.03,0.00019884,2]
[360739403,1746959438867,-400.0,0.00019884,2]
[360739405,1746959438876,-7341.92,0.00019884,2]
[360739407,1746959438885,-400.0,0.00019884,2]
[360739409,1746959438895,-400.0,0.00019884,2]
[360739411,1746959438904,-400.0,0.00019884,2]
[360739413,1746959438913,-400.0,0.00019884,2]
[360739415,1746959438922,-1026.42749779,0.00019884,2]
[360739420,1746959438956,-8791.54250221,0.00019884,2]
[360739422,1746959438965,-400.0,0.00019884,2]
[360739424,1746959438974,-400.0,0.00019884,2]
[360739426,1746959438984,-400.0,0.00019884,2]
[360739428,1746959438993,-400.0,0.00019884,2]
[360739431,1746959439002,-400.0,0.00019884,2]
[360739434,1746959439012,-1736.34,0.00019884,2]
[360739436,1746959439021,-400.0,0.00019884,2]
[360739438,1746959439030,-400.0,0.00019884,2]